bitfinex/quotes_BTCUSD_20251016
["timestamp","ask_amount","ask_price","bid_price","bid_amount"]
[1760594110707,1e-08,111030.0,111020.0,2.03362748]
[1760594110942,1e-08,111030.0,111020.0,1.8837652]
[1760594111133,0.57354755,111060.0,111020.0,0.20645364]
[1760594111358,0.18010362,111050.0,111040.0,0.38572128]
[1760594111584,0.18010362,111050.0,111040.0,0.49940128]
[1760594111786,0.18010362,111050.0,111040.0,0.38572128]
[1760594112212,0.18010362,111050.0,111040.0,0.11368]
[1760594112441,0.30995186,111060.0,111040.0,0.69752764]
[1760594112646,0.31835399,111060.0,111050.0,0.11368]
[1760594112853,0.31835399,111060.0,111040.0,0.47348707]
[1760594113313,0.31835399,111060.0,111050.0,0.11364]
[1760594113513,0.31835399,111060.0,111040.0,0.65360197]
[1760594113718,0.18009905,111050.0,111040.0,0.47348707]
[1760594113879,0.18009905,111050.0,111040.0,0.58712707]
[1760594114074,0.18009905,111050.0,111040.0,0.47348707]
[1760594114280,0.69567314,111060.0,111040.0,0.65360196]
[1760594114541,0.32836186,111060.0,111040.0,0.65360196]
[1760594115367,0.32836186,111060.0,111050.0,0.11364]
[1760594115934,0.18009905,111050.0,111040.0,0.47348707]
[1760594116164,0.18009905,111050.0,111040.0,0.58712707]
[1760594116572,0.18009905,111050.0,111040.0,0.20140579]
[1760594116803,0.18009905,111050.0,111040.0,0.49936128]
[1760594118562,0.30995186,111060.0,111040.0,0.67947606]
[1760594118764,0.32836204,111060.0,111040.0,0.67947606]
[1760594118989,0.32836204,111060.0,111050.0,0.38572128]
[1760594119203,0.00855907,111060.0,111050.0,0.67946033]
[1760594119412,0.00014889,111060.0,111050.0,0.76914241]
[1760594119622,0.00014889,111060.0,111050.0,0.65550241]
[1760594119840,0.00014889,111060.0,111050.0,1.15486369]
[1760594120241,0.00014889,111060.0,111050.0,0.76914241]
[1760594120463,0.00014889,111060.0,111050.0,1.15486369]
[1760594120826,0.00014889,111060.0,111050.0,1.24455381]
[1760594121026,0.00014889,111060.0,111050.0,1.13091381]
[1760594121227,0.00014889,111060.0,111050.0,1.58455381]
[1760594121430,0.00014889,111060.0,111050.0,1.58459381]
[1760594122811,0.00014889,111060.0,111050.0,1.97031509]
[1760594123438,0.0090009,111100.0,111080.0,0.95148907]
[1760594123663,0.42570294,111100.0,111090.0,0.49940128]
[1760594124108,0.32698171,111100.0,111090.0,0.49940128]
[1760594124548,0.14696371,111100.0,111090.0,0.49940128]
[1760594124707,0.32698171,111100.0,111090.0,0.11368]
[1760594124959,0.32698171,111100.0,111090.0,0.17002428]
[1760594125161,0.14696371,111100.0,111090.0,0.73577976]
[1760594125364,0.14696371,111100.0,111090.0,0.71777634]
[1760594125562,0.16335378,111100.0,111090.0,0.53774214]
[1760594125764,0.34337178,111100.0,111090.0,0.53774214]
[1760594125968,0.16335378,111100.0,111090.0,0.53774214]
[1760594126984,0.34337178,111100.0,111090.0,0.53774214]
[1760594127509,0.34337178,111100.0,111090.0,0.5375332]
[1760594127715,0.34137178,111100.0,111090.0,0.5375332]
[1760594128939,0.16135378,111100.0,111090.0,0.5375332]
[1760594129189,0.16135378,111100.0,111090.0,0.7175674]
[1760594129344,0.16311803,111100.0,111090.0,0.7175674]
[1760594129727,0.14672796,111100.0,111090.0,0.7175674]
[1760594129927,0.00191425,111100.0,111090.0,0.7175674]
[1760594130137,0.00191425,111100.0,111090.0,1.10307974]
[1760594130561,0.00191425,111100.0,111090.0,1.19276986]
[1760594131367,0.00191425,111100.0,111090.0,0.80717752]
[1760594131577,0.00191425,111100.0,111090.0,0.69357752]
[1760594131780,0.00191425,111100.0,111090.0,0.80721752]
[1760594132104,0.00191425,111100.0,111090.0,0.42170518]
[1760594132345,0.00191425,111100.0,111090.0,0.56554654]
[1760594132539,0.00191425,111100.0,111090.0,0.67914654]
[1760594132949,0.00191425,111100.0,111090.0,0.56554654]
[1760594133126,0.00191425,111100.0,111090.0,0.67914654]
[1760594133873,0.00191425,111100.0,111090.0,0.38551234]
[1760594134083,0.00191425,111100.0,111090.0,0.35023008]
[1760594134487,0.00191425,111100.0,111090.0,0.1800342]
[1760594134623,0.00191425,111100.0,111090.0,0.2936742]
[1760594134832,0.00191425,111100.0,111090.0,0.56554654]
[1760594135038,0.00191425,111100.0,111090.0,0.67918654]
[1760594135238,0.00191425,111100.0,111090.0,0.56554654]
[1760594135467,0.00191425,111100.0,111090.0,0.75374585]
[1760594136864,0.00191425,111100.0,111090.0,0.75370585]
[1760594137188,0.00191425,111100.0,111090.0,0.64010585]
[1760594137539,0.00191425,111100.0,111090.0,0.75370585]
[1760594137969,0.00191425,111100.0,111090.0,0.64010585]
[1760594138666,0.00191425,111100.0,111090.0,0.75370585]
[1760594138915,0.00191425,111100.0,111090.0,0.64010585]
[1760594139119,0.00191425,111100.0,111090.0,0.75370585]
[1760594139883,0.00191425,111100.0,111090.0,0.64010585]
[1760594140102,0.00191425,111100.0,111090.0,0.75370585]
[1760594140536,0.00191425,111100.0,111090.0,0.75366585]
[1760594140750,0.00191425,111100.0,111090.0,0.64010585]
[1760594140947,0.00191425,111100.0,111090.0,0.75366585]
[1760594142195,0.00191425,111100.0,111090.0,0.46007165]
[1760594142392,0.00191425,111100.0,111080.0,0.56555895]
[1760594142631,0.18018207,111100.0,111070.0,0.38551234]
[1760594142851,0.1916404,111090.0,111060.0,0.56559482]
[1760594143043,0.1916404,111090.0,111070.0,0.29362596]
[1760594143259,0.1916404,111090.0,111070.0,0.18006596]
[1760594143416,0.18904504,111090.0,111080.0,0.11356]
[1760594143612,0.1800342,111090.0,111080.0,0.13156504]
[1760594145299,4.018028,111090.0,111080.0,0.31161419]
[1760594145506,4.018028,111090.0,111080.0,0.29360915]
[1760594146132,4.1980622,111090.0,111080.0,0.11356]
[1760594146338,0.1800342,111090.0,111080.0,0.13156504]
[1760594146517,0.26987219,111100.0,111080.0,1.07470773]
[1760594146518,0.19949426,111100.0,111080.0,1.07470773]
[1760594146729,0.1801683,111100.0,111080.0,1.05670269]
[1760594147143,0.1801683,111100.0,111090.0,0.01800342]
[1760594147550,0.1801683,111100.0,111090.0,0.13156342]
[1760594147961,0.180168,111100.0,111090.0,0.13156342]
[1760594148373,0.00191425,111100.0,111090.0,0.96113051]
[1760594148576,0.00191425,111100.0,111090.0,1.05668709]
[1760594148782,0.00191425,111100.0,111090.0,0.20324208]
[1760594148999,0.18193225,111100.0,111080.0,0.94313727]
[1760594149236,0.180168,111100.0,111080.0,0.26972847]
[1760594149378,0.180168,111100.0,111090.0,0.11356]
[1760594149785,0.180168,111100.0,111080.0,0.18004639]
[1760594149986,0.00015,111100.0,111090.0,0.2935942]
[1760594150414,0.00015,111100.0,111090.0,0.1800342]
[1760594150616,0.00015,111100.0,111090.0,0.31159762]
[1760594150859,0.00015,111100.0,111090.0,0.2935942]
[1760594151018,0.180168,111100.0,111090.0,0.2935942]
[1760594151618,0.180168,111100.0,111090.0,0.1800342]
[1760594151863,0.180168,111100.0,111090.0,0.2935942]
[1760594152386,0.180168,111100.0,111090.0,0.11356]
[1760594153203,0.00015,111100.0,111090.0,0.31159762]
[1760594153403,0.00015,111100.0,111090.0,0.1800342]
[1760594153626,0.00015,111100.0,111090.0,0.31155762]
[1760594153829,0.00015,111100.0,111090.0,0.2935542]
[1760594154238,0.180168,111100.0,111090.0,0.2935542]
[1760594154439,0.180168,111100.0,111090.0,0.1800342]
[1760594154645,0.180168,111100.0,111090.0,0.2935542]
[1760594154822,0.18193225,111100.0,111090.0,0.11352]
[1760594155854,0.18193225,111100.0,111080.0,0.18004639]
[1760594155968,0.18193225,111100.0,111080.0,0.26972847]
[1760594156174,0.180168,111100.0,111090.0,0.11352]
[1760594156372,0.1800342,111090.0,111080.0,0.18005041]
[1760594156627,0.1800342,111090.0,111070.0,0.52906491]
[1760594156628,0.1800342,111090.0,111070.0,0.18906491]
[1760594156848,0.1800342,111090.0,111080.0,0.13152504]
[1760594157071,0.1800342,111090.0,111080.0,0.14191379]
[1760594157524,0.1800342,111090.0,111080.0,0.13152504]
[1760594158649,0.1800342,111090.0,111080.0,0.13148504]
[1760594159084,0.1800342,111090.0,111080.0,0.01800504]
[1760594159295,0.1800342,111090.0,111080.0,0.11348]
[1760594159496,0.1800342,111090.0,111070.0,0.18006662]
[1760594159914,0.1800342,111090.0,111080.0,0.11348]
[1760594160314,0.1800342,111090.0,111070.0,0.18006662]
[1760594160535,0.1800342,111090.0,111080.0,0.11348]
[1760594160736,0.1800342,111090.0,111070.0,0.2697487]
[1760594160937,0.1800342,111090.0,111070.0,0.18006662]
[1760594161158,0.1800342,111090.0,111080.0,0.11348]
[1760594162127,0.1800342,111090.0,111070.0,0.18006662]
[1760594162292,0.18005041,111080.0,111060.0,0.18007721]
[1760594162496,0.18005041,111080.0,111070.0,0.11348]
[1760594162718,0.18005041,111080.0,111060.0,0.18007721]
[1760594162920,0.18903591,111090.0,111070.0,0.29354662]
[1760594163380,0.18903591,111090.0,111080.0,0.11348]
[1760594163582,0.18903591,111090.0,111080.0,0.49908749]
[1760594163698,0.18903591,111090.0,111080.0,0.38560749]
[1760594163901,0.18903591,111090.0,111080.0,0.49908749]
[1760594164183,0.00525466,111090.0,111080.0,0.49908749]
[1760594164388,0.18528886,111090.0,111080.0,0.49908749]
[1760594165343,0.18528886,111090.0,111080.0,0.11348]
[1760594165586,0.18528886,111090.0,111080.0,0.13148504]
[1760594166347,0.18528886,111090.0,111080.0,0.13144504]
[1760594166548,0.18528886,111090.0,111080.0,0.01800504]
[1760594166787,0.18528886,111090.0,111080.0,0.51705253]
[1760594166994,0.18528886,111090.0,111080.0,0.49904749]
[1760594168081,0.18528886,111090.0,111080.0,0.38560749]
[1760594168277,0.18528886,111090.0,111080.0,0.11344]
[1760594168532,0.18646513,111090.0,111080.0,0.13144504]
[1760594168734,0.18646513,111090.0,111080.0,0.51705253]
[1760594168902,0.18646513,111090.0,111080.0,0.49904749]
[1760594169406,0.18646513,111090.0,111080.0,0.11344]
[1760594169620,0.18646513,111090.0,111080.0,0.40361253]
[1760594169822,0.18646513,111090.0,111080.0,0.49904749]
[1760594172468,0.18646513,111090.0,111080.0,0.11344]
[1760594172684,0.18646513,111090.0,111080.0,0.01800504]
[1760594172917,0.18646513,111090.0,111080.0,0.13144504]
[1760594176289,0.18646513,111090.0,111080.0,0.01800504]
[1760594176524,0.18646513,111090.0,111080.0,0.51705253]
[1760594176701,0.18646513,111090.0,111080.0,0.49904749]
[1760594180405,0.18646513,111090.0,111080.0,0.38560749]
[1760594180610,0.18646513,111090.0,111080.0,0.11344]
[1760594180820,0.18646513,111090.0,111080.0,0.51705253]
[1760594181024,0.18646513,111090.0,111080.0,0.49904749]
[1760594182070,0.00117627,111090.0,111080.0,0.72347931]
[1760594183040,0.00117627,111090.0,111080.0,1.1090868]
[1760594183218,0.00117627,111090.0,111080.0,1.19877692]
[1760594183421,0.00117627,111090.0,111080.0,0.81316943]
[1760594183983,0.00117627,111090.0,111080.0,0.69972943]
[1760594184187,0.00117627,111090.0,111080.0,0.83050015]
[1760594184403,0.00117627,111090.0,111080.0,1.55610764]
[1760594184603,0.00117627,111090.0,111080.0,1.44266764]
[1760594184861,0.00117627,111090.0,111080.0,1.55610764]
[1760594185271,0.00117627,111090.0,111080.0,1.58672492]
[1760594186254,0.00117627,111090.0,111080.0,1.58676492]
[1760594187015,0.00117627,111090.0,111080.0,1.47328492]
[1760594187484,0.00117627,111090.0,111080.0,1.58676492]
[1760594187919,0.00117627,111090.0,111080.0,1.47328492]
[1760594188148,0.00117627,111090.0,111080.0,1.58676492]
[1760594189421,0.00117627,111090.0,111080.0,1.97153628]
[1760594190045,0.00117627,111090.0,111080.0,1.85805628]
[1760594190250,0.00117627,111090.0,111080.0,1.97149628]
[1760594190520,0.00117627,111090.0,111080.0,1.85805628]
[1760594190702,0.00117627,111090.0,111080.0,1.97149628]
[1760594191401,0.00117627,111090.0,111080.0,1.85805628]
[1760594191597,0.00117627,111090.0,111080.0,1.97149628]
[1760594192453,0.00117627,111090.0,111080.0,1.85805628]
[1760594193293,0.00117627,111090.0,111080.0,1.97149628]
[1760594193683,0.03010447,111120.0,111080.0,1.97149628]
[1760594193684,0.00899928,111120.0,111110.0,0.1800018]
[1760594193835,0.02899928,111120.0,111110.0,0.36797526]
[1760594194031,0.02,111120.0,111110.0,0.36797526]
[1760594194892,0.02,111120.0,111110.0,0.75330404]
[1760594195287,0.05019152,111120.0,111110.0,0.75330404]
[1760594195551,0.05019152,111120.0,111110.0,0.75326404]
[1760594195686,0.05019152,111120.0,111110.0,0.63986404]
[1760594195892,0.18904703,111140.0,111110.0,0.63986404]
[1760594195893,0.18904703,111140.0,111120.0,0.17998371]
[1760594196151,0.40888712,111140.0,111130.0,0.49872878]
[1760594196273,0.40888712,111140.0,111130.0,0.38532878]
[1760594196474,0.40888712,111140.0,111130.0,0.49872878]
[1760594197538,0.40888712,111140.0,111130.0,0.38532878]
[1760594197709,0.40888712,111140.0,111130.0,0.1134]
[1760594198277,0.40888712,111140.0,111130.0,0.49872878]
[1760594198482,0.40888712,111140.0,111130.0,0.38532878]
[1760594198904,0.40888712,111140.0,111130.0,0.49872878]
[1760594198905,0.43892152,111140.0,111130.0,0.49872878]
[1760594200818,0.43892152,111140.0,111130.0,0.38532878]
[1760594201019,0.43892152,111140.0,111130.0,0.49872878]
[1760594201218,0.44186062,111140.0,111130.0,0.49872878]
[1760594202488,0.44186062,111140.0,111130.0,0.1134]
[1760594202665,0.1799694,111130.0,111120.0,0.47501086]
[1760594202881,0.2299694,111130.0,111120.0,0.58841086]
[1760594205092,0.2299694,111130.0,111120.0,0.47501086]
[1760594205321,0.2299694,111130.0,111120.0,0.58841086]
[1760594206189,0.2299694,111130.0,111120.0,0.20308208]
[1760594206439,0.2299694,111130.0,111120.0,0.49872878]
[1760594206886,0.2299694,111130.0,111120.0,0.38532878]
[1760594207063,0.2299694,111130.0,111120.0,0.49872878]
[1760594208016,0.23232089,111130.0,111120.0,0.49872878]
[1760594208628,0.23232089,111130.0,111110.0,0.26353535]
[1760594208834,0.2299694,111130.0,111120.0,0.01799856]
[1760594209507,0.2299694,111130.0,111120.0,0.13139856]
[1760594213401,0.2299694,111130.0,111100.0,0.18001648]
[1760594213402,0.18000082,111120.0,111100.0,0.18001648]
[1760594213689,0.5753296,111120.0,111100.0,0.56534526]
[1760594213890,0.20932322,111120.0,111110.0,0.51672896]
[1760594214019,0.1917646,111120.0,111110.0,0.38532878]
[1760594214208,0.1917646,111120.0,111110.0,0.49872878]
[1760594216057,0.1917646,111120.0,111110.0,0.56660331]
[1760594216256,0.1917646,111120.0,111110.0,0.18127453]
[1760594216453,0.1917646,111120.0,111110.0,0.06787453]
[1760594216627,0.1917646,111120.0,111110.0,0.19927471]
[1760594216829,0.1917646,111120.0,111110.0,0.06787453]
[1760594217124,0.1917646,111120.0,111110.0,0.19927471]
[1760594217298,0.1917646,111120.0,111110.0,0.13140018]
[1760594218691,0.1917646,111120.0,111110.0,0.01800018]
[1760594218888,0.1917646,111120.0,111110.0,0.13140018]
[1760594219682,0.1917646,111120.0,111110.0,0.01800018]
[1760594219877,0.1917646,111120.0,111110.0,0.13140018]
[1760594220479,0.1917646,111120.0,111110.0,0.01800018]
[1760594220702,0.1917646,111120.0,111110.0,0.14349413]
[1760594220922,0.1917646,111120.0,111110.0,0.03009413]
[1760594221141,0.1917646,111120.0,111110.0,0.13140018]
[1760594222014,0.1917646,111120.0,111110.0,0.40332896]
[1760594222248,0.1917646,111120.0,111110.0,0.49872878]
[1760594222406,0.1917646,111120.0,111110.0,0.67873058]
[1760594222609,0.1917646,111120.0,111110.0,0.49872878]
[1760594222846,0.1917646,111120.0,111110.0,0.58841086]
[1760594223259,0.01176378,111120.0,111110.0,0.76841266]
[1760594223448,0.01176378,111120.0,111110.0,0.65501266]
[1760594223751,0.01176378,111120.0,111110.0,0.76841266]
[1760594224944,0.01176378,111120.0,111110.0,0.65501266]
[1760594225374,0.01176378,111120.0,111110.0,0.76841266]
[1760594227343,0.00176378,111120.0,111110.0,0.76841266]
[1760594227573,0.00176378,111120.0,111110.0,1.04034144]
[1760594227700,0.00176378,111120.0,111110.0,1.15374144]
[1760594228139,0.00176378,111120.0,111110.0,1.04034144]
[1760594228338,0.00176378,111120.0,111110.0,1.24343156]
[1760594228546,0.00176378,111120.0,111110.0,0.85810278]
[1760594228723,0.00176378,111120.0,111110.0,0.74470278]
[1760594228937,0.00176378,111120.0,111110.0,0.85806278]
[1760594229464,0.00176378,111120.0,111110.0,1.24339156]
[1760594230399,0.00176378,111120.0,111110.0,1.27045231]
[1760594230604,0.00176378,111120.0,111110.0,1.15709231]
[1760594230820,0.00176378,111120.0,111110.0,1.61045231]
[1760594231845,0.00176378,111120.0,111110.0,1.49709231]
[1760594232302,0.00176378,111120.0,111110.0,1.61045231]
[1760594232727,0.00176378,111120.0,111110.0,1.53327459]
[1760594232862,0.00176378,111120.0,111110.0,1.64663459]
[1760594233272,0.00176378,111120.0,111110.0,1.91860337]
[1760594233457,0.00176378,111120.0,111110.0,2.03196337]
[1760594234490,0.00176378,111120.0,111110.0,1.64663459]
[1760594235981,0.00176378,111120.0,111110.0,1.53327459]
[1760594236414,0.00176378,111120.0,111110.0,1.64663459]
[1760594236817,0.00176378,111120.0,111110.0,1.53327459]
[1760594237157,0.00176378,111120.0,111110.0,1.64663459]
[1760594237999,0.00176378,111120.0,111110.0,1.53327459]
[1760594238202,0.00176378,111120.0,111110.0,0.20643295]
[1760594238406,0.00176378,111120.0,111110.0,0.68208145]
[1760594239079,0.00176378,111120.0,111110.0,0.79544145]
[1760594240201,0.00176378,111120.0,111110.0,0.68208145]
[1760594240628,0.00176378,111120.0,111110.0,0.41011267]
[1760594240854,0.00176378,111120.0,111110.0,0.79544145]
[1760594241086,0.00176378,111120.0,111110.0,1.15709231]
[1760594241316,0.00176378,111120.0,111110.0,1.27045231]
[1760594242174,0.00176378,111120.0,111110.0,1.15709231]
[1760594242442,0.00176378,111120.0,111110.0,1.27045231]
[1760594242643,0.00176378,111120.0,111110.0,0.88512353]
[1760594243045,0.00176378,111120.0,111110.0,0.77176353]
[1760594243290,0.00176378,111120.0,111110.0,0.88512353]
[1760594243507,0.00176378,111120.0,111110.0,1.27045231]
[1760594243989,0.00176378,111120.0,111110.0,0.49979475]
[1760594244161,0.00176378,111120.0,111110.0,1.27045231]
[1760594245387,0.00176378,111120.0,111110.0,1.15709231]
[1760594245594,0.00176378,111120.0,111110.0,1.27045231]
[1760594246639,0.00176378,111120.0,111110.0,1.15709231]
[1760594246839,0.00176378,111120.0,111110.0,1.27045231]
[1760594247265,0.00176378,111120.0,111110.0,1.15709231]
[1760594247470,0.00176378,111120.0,111110.0,1.27045231]
[1760594248277,0.00176378,111120.0,111110.0,1.61045231]
[1760594248496,0.00176378,111120.0,111110.0,1.88242109]
[1760594248711,0.00176378,111120.0,111110.0,1.99578109]
[1760594249320,0.00176378,111120.0,111110.0,2.03196337]
[1760594249753,0.00176378,111120.0,111110.0,1.91860337]
[1760594249964,0.00176378,111120.0,111110.0,2.03196337]
[1760594250438,0.00176378,111120.0,111110.0,1.64663459]
[1760594250638,0.00176378,111120.0,111110.0,1.53327459]
[1760594250862,0.00176378,111120.0,111110.0,1.64663459]
[1760594251507,0.00176378,111120.0,111110.0,1.64631735]
[1760594252590,0.00176378,111120.0,111110.0,1.53295735]
[1760594252792,0.00176378,111120.0,111110.0,1.64631735]
[1760594253376,0.00176378,111120.0,111110.0,1.53295735]
[1760594253523,0.00176378,111120.0,111110.0,1.64631735]
[1760594254823,0.00176378,111120.0,111110.0,1.53295735]
[1760594255019,0.00176378,111120.0,111110.0,1.64631735]
[1760594257866,0.00176378,111120.0,111110.0,1.53295735]
[1760594258067,0.00176378,111120.0,111110.0,1.64631735]
[1760594259971,0.00176378,111120.0,111110.0,1.64627735]
[1760594261720,0.00176378,111120.0,111110.0,1.53295735]
[1760594261926,0.00176378,111120.0,111110.0,1.64627735]
[1760594263330,0.23596363,111160.0,111140.0,0.17995321]
[1760594263331,0.03667165,111160.0,111140.0,0.17995321]
[1760594263535,0.30709239,111160.0,111150.0,0.40316386]
[1760594263710,0.27042074,111160.0,111150.0,0.67842718]
[1760594264138,0.30727077,111160.0,111150.0,0.56510718]
[1760594264339,0.12734983,111160.0,111150.0,0.67842718]
[1760594264495,0.30962119,111160.0,111150.0,0.76606475]
[1760594268330,0.30962119,111160.0,111150.0,0.47280773]
[1760594268664,0.30962119,111160.0,111150.0,0.58612773]
[1760594269279,0.30962119,111160.0,111150.0,0.47280773]
[1760594269496,0.30962119,111160.0,111150.0,0.58612773]
[1760594269925,0.30962119,111160.0,111150.0,0.08763757]
[1760594270162,0.17993702,111150.0,111140.0,0.19794745]
[1760594270357,0.17993702,111150.0,111140.0,0.51648548]
[1760594270514,0.17993702,111150.0,111140.0,0.58311869]
[1760594270717,0.17993702,111150.0,111140.0,0.69643869]
[1760594271143,0.17993702,111150.0,111140.0,0.51648548]
[1760594271698,0.17993702,111150.0,111140.0,0.69643869]
[1760594272497,0.21727066,111160.0,111140.0,0.69643869]
[1760594272763,0.34727066,111160.0,111140.0,0.58311869]
[1760594272967,0.34727066,111160.0,111150.0,0.11332]
[1760594273759,0.34727066,111160.0,111150.0,0.18296387]
[1760594274483,0.34727066,111160.0,111150.0,0.11332]
[1760594274824,0.34727066,111160.0,111150.0,0.38517016]
[1760594275235,0.34727066,111160.0,111140.0,0.58311786]
[1760594275444,0.34727066,111160.0,111150.0,0.11332]
[1760594275652,0.17995321,111140.0,111130.0,0.54702358]
[1760594275861,0.17995321,111140.0,111130.0,0.10166362]
[1760594276064,0.17995321,111140.0,111130.0,0.13131694]
[1760594276265,0.17995321,111140.0,111130.0,0.31128634]
[1760594276480,0.17995321,111140.0,111130.0,0.56513956]
[1760594276690,0.17995321,111140.0,111130.0,0.67845956]
[1760594276902,0.17995321,111140.0,111130.0,0.65098334]
[1760594277311,0.17995321,111140.0,111130.0,0.08584378]
[1760594277522,0.17995321,111140.0,111130.0,0.13131694]
[1760594277731,0.17995321,111140.0,111130.0,0.19796634]
[1760594277927,0.17995321,111140.0,111130.0,0.2932894]
[1760594278472,0.17995321,111140.0,111130.0,0.67845956]
[1760594278672,0.17995321,111140.0,111130.0,0.76430334]
[1760594278876,0.17995321,111140.0,111130.0,0.65098334]
[1760594279098,0.17995321,111140.0,111130.0,0.76430334]
[1760594279665,0.14049929,111150.0,111130.0,0.76430334]
[1760594279888,0.15049929,111150.0,111140.0,0.01799532]
[1760594281046,0.15049929,111150.0,111140.0,0.13131532]
[1760594281360,0.15049929,111150.0,111140.0,0.01799532]
[1760594281361,4.67029034,111150.0,111140.0,0.01799532]
[1760594281583,4.67029034,111150.0,111130.0,0.01799694]
[1760594281584,0.17995321,111140.0,111130.0,0.01799694]
[1760594282007,0.17995321,111140.0,111130.0,0.19796634]
[1760594282367,0.17995321,111140.0,111130.0,0.2932894]
[1760594282584,0.17997822,111130.0,111110.0,0.39543279]
[1760594282848,0.17997822,111130.0,111120.0,0.38517016]
[1760594283023,0.17997822,111130.0,111120.0,0.46323046]
[1760594283677,0.17997822,111130.0,111120.0,0.57655046]
[1760594283877,0.17997822,111130.0,111120.0,0.2580459]
[1760594284114,0.17997822,111130.0,111120.0,0.1913803]
[1760594284322,0.17997822,111130.0,111120.0,0.3713659]
[1760594284521,0.17997822,111130.0,111120.0,0.2580459]
[1760594284720,0.17997822,111130.0,111120.0,0.3713659]
[1760594284866,0.17997822,111130.0,111120.0,0.0780603]
[1760594285066,0.17997822,111130.0,111120.0,0.1913803]
[1760594285270,0.1799856,111120.0,111110.0,0.74454348]
[1760594285516,0.1799856,111120.0,111110.0,0.85786348]
[1760594285724,0.17997822,111130.0,111120.0,0.1799856]
[1760594286547,0.17997822,111130.0,111120.0,0.29345557]
[1760594286952,0.17997822,111130.0,111120.0,0.18013557]
[1760594287153,0.17997822,111130.0,111120.0,0.29345557]
[1760594289507,0.17997822,111130.0,111120.0,0.56530573]
[1760594289709,0.17997822,111130.0,111120.0,0.67862573]
[1760594290064,0.1799694,111130.0,111120.0,0.76830781]
[1760594290245,0.18895087,111140.0,111120.0,0.76830781]
[1760594290461,0.18895087,111140.0,111130.0,0.13131694]
[1760594290661,0.18895087,111140.0,111130.0,0.01799694]
[1760594290856,0.18895087,111140.0,111130.0,0.13131694]
[1760594291810,0.18895087,111140.0,111130.0,0.01799694]
[1760594292014,0.18895087,111140.0,111130.0,0.13131694]
[1760594292386,0.19895087,111140.0,111130.0,0.13131694]
[1760594292589,0.19895087,111140.0,111130.0,0.01799694]
[1760594292729,0.19895087,111140.0,111130.0,0.13131694]
[1760594292915,0.20012634,111140.0,111130.0,0.13131694]
[1760594294574,0.20012634,111140.0,111130.0,0.01799694]
[1760594294740,0.20012634,111140.0,111130.0,0.13131694]
[1760594295161,0.20012634,111140.0,111130.0,0.01799694]
[1760594295404,0.20012634,111140.0,111130.0,0.13131694]
[1760594298988,0.20012634,111140.0,111130.0,0.01799694]
[1760594299191,0.20012634,111140.0,111130.0,0.13131694]
[1760594300155,0.20012634,111140.0,111130.0,0.01799694]
[1760594300367,0.20012634,111140.0,111130.0,0.13131694]
[1760594304034,0.20012634,111140.0,111130.0,0.01799694]
[1760594304344,0.20012634,111140.0,111130.0,0.13131694]
[1760594304973,0.20012634,111140.0,111130.0,0.01799694]
[1760594305173,0.20012634,111140.0,111130.0,0.13131694]
[1760594306128,0.20012634,111140.0,111130.0,0.01799694]
[1760594306331,0.20012634,111140.0,111130.0,0.13131694]
[1760594306771,0.20012634,111140.0,111130.0,0.01799694]
[1760594307053,0.20012634,111140.0,111130.0,0.13131694]
[1760594307994,0.20012634,111140.0,111130.0,0.01799694]
[1760594308179,0.20012634,111140.0,111130.0,0.13131694]
[1760594309455,0.20012634,111140.0,111130.0,0.01799694]
[1760594309691,0.20012634,111140.0,111130.0,0.13131694]
[1760594310283,0.20012634,111140.0,111130.0,0.01799694]
[1760594310597,0.20012634,111140.0,111130.0,0.13131694]
[1760594311459,0.20012634,111140.0,111130.0,0.40328442]
[1760594311832,0.20012634,111140.0,111130.0,0.49860748]
[1760594315109,0.1799694,111130.0,111120.0,0.00014997]
[1760594315350,0.1799694,111130.0,111120.0,0.38543745]
[1760594315604,0.1799694,111130.0,111120.0,0.49875745]
[1760594316278,0.1799694,111130.0,111120.0,0.38543745]
[1760594316484,0.1799694,111130.0,111120.0,0.49875745]
[1760594317909,0.1799694,111130.0,111120.0,0.67874305]
[1760594318316,0.1799694,111130.0,111120.0,0.38543745]
[1760594318518,0.1799694,111130.0,111120.0,0.49875745]
[1760594318711,0.1799694,111130.0,111120.0,0.38543745]
[1760594318873,0.1799694,111130.0,111120.0,0.49875745]
[1760594319326,0.1799694,111130.0,111120.0,0.11346997]
[1760594319564,0.1799694,111130.0,111120.0,0.49875745]
[1760594319765,0.1799694,111130.0,111120.0,0.38543745]
[1760594320207,0.1799694,111130.0,111120.0,0.49875745]
[1760594320587,0.18055719,111130.0,111120.0,0.49875745]
[1760594320840,0.18055719,111130.0,111120.0,0.38543745]
[1760594321033,0.18055719,111130.0,111120.0,0.49875745]
[1760594321384,0.18055719,111130.0,111120.0,0.11346997]
[1760594321624,0.18055719,111130.0,111120.0,0.49875745]
[1760594323538,0.58584467,111130.0,111120.0,0.00014997]
[1760594323738,4.62582598,111130.0,111120.0,0.00014997]
[1760594323878,4.62582598,111130.0,111120.0,0.11346997]
[1760594324255,4.2405385,111130.0,111120.0,0.00014997]
[1760594324471,4.2405385,111130.0,111120.0,0.51675601]
[1760594324472,0.21991015,111130.0,111120.0,0.51675601]
[1760594324698,0.20055719,111130.0,111120.0,0.38543745]
[1760594324902,0.20055719,111130.0,111120.0,0.49875745]
[1760594325329,0.20055719,111130.0,111120.0,0.38543745]
[1760594325545,0.20055719,111130.0,111120.0,0.49875745]
[1760594325897,0.20055719,111130.0,111120.0,0.38543745]
[1760594326093,0.20055719,111130.0,111120.0,0.49875745]
[1760594326517,0.20055719,111130.0,111120.0,0.38543745]
[1760594326741,0.20055719,111130.0,111120.0,0.49875745]
[1760594327558,0.20055719,111130.0,111120.0,0.38543745]
[1760594327994,0.20055719,111130.0,111120.0,0.49875745]
[1760594328338,0.20055719,111130.0,111120.0,0.38543745]
[1760594328549,0.20055719,111130.0,111120.0,0.49875745]
[1760594329235,0.20055719,111130.0,111120.0,0.00014997]
[1760594329435,0.20055719,111130.0,111120.0,0.11346997]
[1760594330394,0.58584467,111130.0,111120.0,0.11346997]
[1760594330658,4.62325766,111130.0,111120.0,0.11346997]
[1760594330820,4.62585801,111130.0,111120.0,0.00014997]
[1760594331244,4.71554813,111130.0,111120.0,0.00014997]
[1760594331591,4.71554813,111130.0,111120.0,0.11346997]
[1760594331831,4.71294778,111130.0,111120.0,0.11346997]
[1760594332012,4.71294778,111130.0,111120.0,0.00014997]
[1760594332434,4.71294778,111130.0,111120.0,0.11346997]
[1760594332875,4.71294778,111130.0,111120.0,0.00014997]
[1760594333111,4.71294778,111130.0,111120.0,0.11346997]
[1760594333620,4.71294778,111130.0,111120.0,0.00014997]
[1760594333894,4.71294778,111130.0,111120.0,0.11346997]
[1760594334174,4.71294778,111130.0,111120.0,0.00014997]
[1760594334397,4.3276603,111130.0,111120.0,0.11346997]
[1760594334660,4.71294778,111130.0,111120.0,0.11346997]
[1760594334872,0.69491978,111130.0,111120.0,0.11346997]
[1760594335280,0.6949029,111130.0,111120.0,0.11346997]
[1760594335811,0.6949029,111130.0,111120.0,0.00014997]
[1760594336014,0.6949029,111130.0,111120.0,0.11346997]
[1760594337204,0.6949029,111130.0,111120.0,0.00014997]